bitfinex/quotes_BTCUSD_20250330
["timestamp","ask_amount","ask_price","bid_price","bid_amount"]
[1743377098442,0.03358966,82189.0,82188.0,0.01454085]
[1743377098846,0.03358966,82189.0,82188.0,0.27248508]
[1743377099025,0.03358966,82189.0,82188.0,0.01454085]
[1743377099551,0.03358966,82189.0,82188.0,0.01754085]
[1743377100850,0.03358966,82189.0,82188.0,0.02054085]
[1743377101478,0.01117658,82189.0,82188.0,0.35595185]
[1743377102442,0.0003372,82191.0,82190.0,0.27004485]
[1743377103833,0.0003372,82191.0,82190.0,0.27704485]
[1743377104470,0.0003372,82191.0,82190.0,0.02154085]
[1743377104624,0.0003372,82191.0,82190.0,0.41227885]
[1743377104827,0.0003372,82191.0,82190.0,0.42444485]
[1743377105019,0.0003372,82191.0,82190.0,0.42144485]
[1743377105222,0.0003372,82191.0,82190.0,0.41744485]
[1743377105483,0.0003372,82191.0,82190.0,0.42144485]
[1743377105676,0.0003372,82191.0,82190.0,0.54672968]
[1743377106136,0.04925661,82213.0,82199.0,0.255475]
[1743377106336,0.005,82215.0,82201.0,0.01454085]
[1743377106545,0.00493376,82212.0,82203.0,0.01454085]
[1743377106744,0.04310515,82217.0,82213.0,0.01454085]
[1743377106922,0.04310515,82217.0,82209.0,0.079]
[1743377106923,0.005,82221.0,82215.0,0.01454085]
[1743377107123,0.00493825,82216.0,82215.0,0.01454085]
[1743377107332,0.04183029,82217.0,82215.0,0.01254085]
[1743377107688,0.005,82220.0,82215.0,0.01254085]
[1743377107878,0.04267178,82217.0,82215.0,0.01254085]
[1743377108086,0.005,82220.0,82215.0,0.01254085]
[1743377108289,0.005,82220.0,82215.0,0.01497324]
[1743377108531,0.04648852,82220.0,82215.0,0.01054085]
[1743377108937,0.04648852,82220.0,82214.0,0.1474]
[1743377108938,0.3,82215.0,82214.0,0.1474]
[1743377109337,0.30496384,82215.0,82214.0,0.1474]
[1743377110477,0.31617592,82215.0,82214.0,0.1474]
[1743377111076,0.31617592,82215.0,82214.0,0.16194085]
[1743377111348,0.31617592,82215.0,82214.0,0.41737085]
[1743377111553,0.31617592,82215.0,82214.0,0.17510385]
[1743377111757,0.01617592,82215.0,82214.0,0.1775363]
[1743377111959,0.00496384,82215.0,82214.0,0.17510385]
[1743377112116,0.04203531,82220.0,82215.0,0.01454085]
[1743377112313,0.00046993,82221.0,82215.0,0.01454085]
[1743377112515,0.00046993,82221.0,82217.0,0.01454085]
[1743377112738,0.04285014,82221.0,82216.0,0.01454085]
[1743377112986,0.00046993,82221.0,82216.0,0.01454085]
[1743377113549,0.00046993,82221.0,82216.0,0.01697307]
[1743377113750,0.00046993,82221.0,82217.0,0.06772441]
[1743377113951,0.00046993,82221.0,82220.0,0.02430245]
[1743377114135,0.00087062,82221.0,82220.0,0.11729656]
[1743377114580,0.00087062,82221.0,82220.0,0.13183741]
[1743377114784,0.00087062,82221.0,82220.0,0.13183724]
[1743377114986,0.00087062,82221.0,82220.0,0.1294053]
[1743377115560,0.00087062,82221.0,82220.0,0.1348373]
[1743377115760,0.00087062,82221.0,82220.0,0.13183723]
[1743377116245,0.00087062,82221.0,82220.0,0.13583723]
[1743377116473,0.00087062,82221.0,82220.0,0.14083723]
[1743377117112,0.00087062,82221.0,82220.0,0.13583723]
[1743377117477,0.00087062,82221.0,82220.0,0.13183723]
[1743377117671,0.00087062,82221.0,82220.0,0.13683723]
[1743377117977,0.00087062,82221.0,82220.0,0.13183723]
[1743377118423,0.00087062,82221.0,82220.0,0.14283723]
[1743377118826,0.00087062,82221.0,82220.0,0.13783723]
[1743377119213,0.00087062,82221.0,82220.0,0.14383723]
[1743377119418,0.00087062,82221.0,82220.0,0.13167523]
[1743377121204,0.00087062,82221.0,82220.0,0.20630275]
[1743377122064,0.00087062,82221.0,82220.0,0.13167523]
[1743377123105,0.00087062,82221.0,82220.0,0.27899523]
[1743377123310,0.00087062,82221.0,82220.0,0.2765633]
[1743377125482,0.00087062,82221.0,82220.0,0.9084433]
[1743377126118,0.00120722,82221.0,82220.0,0.9084433]
[1743377126713,0.00120722,82221.0,82220.0,0.6827233]
[1743377126920,0.00120722,82221.0,82220.0,0.8300433]
[1743377127068,0.00637531,82221.0,82220.0,0.8300433]
[1743377127269,0.00120722,82221.0,82220.0,0.8300433]
[1743377128196,0.00120722,82221.0,82220.0,0.84318571]
[1743377129488,0.00120722,82221.0,82220.0,0.8300433]
[1743377130350,0.00637531,82221.0,82220.0,0.8300433]
[1743377130519,0.00120722,82221.0,82220.0,1.0854543]
[1743377130719,0.00120722,82221.0,82220.0,1.33333913]
[1743377130947,0.00120722,82221.0,82220.0,1.45362396]
[1743377131486,0.00120722,82221.0,82220.0,1.87292396]
[1743377131661,0.00120722,82221.0,82220.0,1.86692396]
[1743377132120,0.00120722,82221.0,82220.0,1.89792396]
[1743377132273,0.00120722,82221.0,82220.0,1.88592396]
[1743377132527,0.00120722,82221.0,82220.0,1.89792396]
[1743377133891,0.00120722,82221.0,82220.0,1.89192396]
[1743377134071,0.00120722,82221.0,82220.0,1.88588396]
[1743377134287,0.00120722,82221.0,82220.0,1.89788396]
[1743377134792,0.00120722,82221.0,82220.0,1.77159913]
[1743377135197,0.00120722,82221.0,82220.0,1.77759913]
[1743377136999,0.004,82239.0,82220.0,1.77759913]
[1743377137000,0.004,82239.0,82238.0,0.336855]
[1743377137206,0.0041409,82239.0,82238.0,0.49867585]
[1743377138039,0.0041409,82239.0,82238.0,0.61896068]
[1743377138269,0.0041409,82239.0,82238.0,0.73654015]
[1743377138482,0.0041409,82239.0,82238.0,0.74254015]
[1743377138938,0.0041409,82239.0,82238.0,0.77319423]
[1743377140353,0.000337,82251.0,82238.0,0.77319423]
[1743377140629,0.001,82564.0,82250.0,0.255319]
[1743377140846,0.00014122,82265.0,82251.0,0.91863463]
[1743377141006,0.00014122,82265.0,82256.0,0.01454085]
[1743377141234,0.04145876,82265.0,82258.0,0.01454085]
[1743377141394,0.04145876,82265.0,82260.0,0.01454085]
[1743377141795,0.04145876,82265.0,82258.0,0.01454085]
[1743377142001,0.05361376,82265.0,82260.0,0.01454085]
[1743377142330,0.04145876,82265.0,82258.0,0.01454085]
[1743377142640,0.04145876,82265.0,82258.0,0.01754085]
[1743377143684,0.04145876,82265.0,82258.0,0.01454085]
[1743377144115,0.04145876,82265.0,82260.0,0.01754085]
[1743377144226,0.04145876,82265.0,82264.0,0.0394752]
[1743377145312,0.04145876,82265.0,82264.0,0.0384752]
[1743377145758,0.04145876,82265.0,82264.0,0.0434752]
[1743377147144,0.04145876,82265.0,82264.0,0.0414752]
[1743377147720,0.04145876,82265.0,82264.0,0.0384752]
[1743377147926,0.04145876,82265.0,82264.0,0.0464752]
[1743377148238,0.04145876,82265.0,82264.0,0.0424752]
[1743377148642,0.04145876,82265.0,82264.0,0.0474752]
[1743377149099,0.04145876,82265.0,82264.0,0.0434752]
[1743377150506,0.04145876,82265.0,82264.0,0.0474752]
[1743377150721,0.04179536,82265.0,82264.0,0.0474752]
[1743377151688,0.0124912,82274.0,82265.0,0.01454085]
[1743377151907,0.0124912,82274.0,82265.0,0.02074246]
[1743377152848,0.0003372,82274.0,82265.0,0.02074246]
[1743377153046,0.2434272,82274.0,82265.0,0.02074246]
[1743377153307,0.243096,82272.0,82265.0,0.02074246]
[1743377153591,0.243113,82266.0,82265.0,0.02074246]
[1743377153748,0.243113,82266.0,82265.0,0.01654085]
[1743377154083,0.255268,82266.0,82265.0,0.01454085]
[1743377154334,0.243134,82259.0,82258.0,0.63164]
[1743377154527,0.25529,82259.0,82258.0,0.77888]
[1743377154984,0.25529,82259.0,82258.0,0.80363953]
[1743377155206,0.25529,82259.0,82258.0,0.65639953]
[1743377155973,0.243134,82259.0,82258.0,0.73676348]
[1743377156196,0.243134,82259.0,82258.0,0.88400348]
[1743377156402,0.243134,82259.0,82258.0,0.73676348]
[1743377156694,0.243134,82259.0,82258.0,0.65639953]
[1743377157326,0.243134,82259.0,82258.0,0.65939953]
[1743377158103,0.243134,82259.0,82258.0,0.66339953]
[1743377160122,0.243104,82269.0,82259.0,0.01454085]
[1743377160341,0.243118,82265.0,82259.0,0.01454085]
[1743377161259,0.243107,82268.0,82259.0,0.01554085]
[1743377161461,0.255268,82266.0,82259.0,0.05261018]
[1743377161904,0.24312,82264.0,82259.0,0.01454085]
[1743377162116,0.255275,82264.0,82259.0,0.01754085]
[1743377162334,0.255275,82264.0,82259.0,0.01654085]
[1743377162692,0.255282,82262.0,82259.0,0.01554085]
[1743377163300,0.255282,82262.0,82259.0,0.01754085]
[1743377163788,0.255282,82262.0,82259.0,0.01654085]
[1743377164414,0.255282,82262.0,82259.0,0.01454085]
[1743377164815,0.255282,82262.0,82259.0,0.01954085]
[1743377165019,0.255282,82262.0,82259.0,0.01754085]
[1743377165323,0.290702,82260.0,82259.0,0.01754085]
[1743377165525,0.302858,82260.0,82259.0,0.005]
[1743377166326,0.302858,82260.0,82259.0,0.002]
[1743377167074,0.012156,82259.0,82258.0,0.0001682]
[1743377167282,0.047571,82260.0,82258.0,0.0001682]
[1743377167491,0.047571,82260.0,82259.0,0.00543119]
[1743377167670,0.047571,82260.0,82259.0,0.02054085]
[1743377168257,0.047571,82260.0,82259.0,0.02969685]
[1743377168457,0.047571,82260.0,82259.0,0.06376768]
[1743377168659,0.047571,82260.0,82259.0,0.01454085]
[1743377168829,0.047571,82260.0,82259.0,0.16178085]
[1743377169230,0.047571,82260.0,82259.0,0.17636799]
[1743377169426,0.047571,82260.0,82259.0,0.16178085]
[1743377169739,0.047571,82260.0,82259.0,0.17636786]
[1743377169937,0.047571,82260.0,82259.0,0.27310455]
[1743377170137,0.047571,82260.0,82259.0,0.27367351]
[1743377170980,0.047571,82260.0,82259.0,0.27567351]
[1743377171389,0.047571,82260.0,82259.0,0.35007351]
[1743377171578,0.047571,82260.0,82259.0,0.34607351]
[1743377171779,0.047571,82260.0,82259.0,0.35207351]
[1743377172029,0.047571,82260.0,82259.0,0.47735834]
[1743377173416,0.047571,82260.0,82259.0,0.52525834]
[1743377174632,0.047571,82260.0,82259.0,0.51425834]
[1743377175016,0.047571,82260.0,82259.0,0.52625834]
[1743377175217,0.047571,82260.0,82259.0,0.52642654]
[1743377177273,0.047571,82260.0,82259.0,0.94568654]
[1743377177472,0.0003364,82265.0,82259.0,0.94568654]
[1743377177473,0.0003364,82265.0,82264.0,0.042155]
[1743377177685,0.0003364,82265.0,82264.0,0.25731074]
[1743377177862,0.0003364,82265.0,82264.0,1.02208068]
[1743377178069,0.0003364,82273.0,82272.0,0.41105]
[1743377178272,0.0003364,82273.0,82272.0,0.84489085]
[1743377178477,0.0003364,82273.0,82272.0,1.0491182]
[1743377180294,0.0003364,82273.0,82272.0,1.0611182]
[1743377180514,0.0003364,82273.0,82272.0,1.0551182]
[1743377180724,0.0003364,82273.0,82272.0,1.06869837]
[1743377180899,0.0003364,82273.0,82272.0,1.07469837]
[1743377181100,0.0003364,82273.0,82272.0,1.08069837]
[1743377181305,0.0003364,82273.0,82272.0,1.22789837]
[1743377184460,0.0003364,82273.0,82272.0,1.23289837]
[1743377186258,0.0003364,82273.0,82272.0,1.22689837]
[1743377186537,0.0003364,82273.0,82272.0,1.23289837]
[1743377186943,6e-07,82274.0,82272.0,1.52689837]
[1743377187171,6e-07,82274.0,82273.0,1.8263889]
[1743377187381,6e-07,82274.0,82273.0,1.82395915]
[1743377189779,6e-07,82274.0,82273.0,1.82995915]
[1743377189945,6e-07,82274.0,82273.0,1.82395915]
[1743377190347,6e-07,82274.0,82273.0,1.82995915]
[1743377190547,6e-07,82274.0,82273.0,1.83595915]
[1743377191061,6e-07,82274.0,82273.0,1.82995915]
[1743377191258,6e-07,82274.0,82273.0,1.83595915]
[1743377191609,0.0003372,82304.0,82288.0,0.38084085]
[1743377191761,0.0003372,82304.0,82288.0,2.09560234]
[1743377191962,0.0003372,82304.0,82297.0,0.285173]
[1743377192286,0.00047842,82298.0,82297.0,0.92039788]
[1743377192688,0.00047842,82298.0,82297.0,0.96659788]
[1743377192915,0.00047842,82298.0,82297.0,1.30224786]
[1743377193151,0.00047842,82298.0,82297.0,1.42253269]
[1743377193289,0.03587708,82320.0,82319.0,0.255104]
[1743377193651,0.0003372,82322.0,82321.0,0.255098]
[1743377193804,0.00080774,82322.0,82321.0,0.26963885]
[1743377194002,0.00080774,82322.0,82321.0,0.38992368]
[1743377194223,0.00080774,82322.0,82321.0,0.4738662]
[1743377194991,0.00080774,82322.0,82321.0,0.50457996]
[1743377195656,0.00080774,82322.0,82321.0,0.49857996]
[1743377196011,0.00080774,82322.0,82321.0,0.50957996]
[1743377196255,0.00080774,82322.0,82321.0,0.50457996]
[1743377196626,0.00080774,82322.0,82321.0,0.51057996]
[1743377196839,0.00080774,82322.0,82321.0,0.42663744]
[1743377197019,0.00080774,82322.0,82321.0,0.57371744]
[1743377197460,0.00080774,82322.0,82321.0,0.42663744]
[1743377197759,0.00080774,82322.0,82321.0,0.57371744]
[1743377198422,0.00080774,82322.0,82321.0,0.42663744]
[1743377198622,0.00080774,82322.0,82321.0,0.57371744]
[1743377200957,0.00080774,82322.0,82321.0,0.99301664]
[1743377202487,0.00080774,82322.0,82321.0,0.84593664]
[1743377202685,0.00080774,82322.0,82321.0,0.99297664]
[1743377203531,0.00080774,82322.0,82321.0,0.98697664]
[1743377203730,0.00080774,82322.0,82321.0,1.10726147]
[1743377204155,0.00080774,82322.0,82321.0,1.11326147]
[1743377204725,0.00080774,82322.0,82321.0,1.10726147]
[1743377204926,0.00080774,82322.0,82321.0,1.10126147]
[1743377205096,0.00080774,82322.0,82321.0,1.10726147]
[1743377206549,0.00080774,82322.0,82321.0,1.11326147]
[1743377208375,0.00080774,82322.0,82321.0,1.10126147]
[1743377209689,0.00080774,82322.0,82321.0,1.26526147]
[1743377209915,0.00080774,82322.0,82321.0,1.27126147]
[1743377210337,0.00300069,82323.0,82321.0,1.27126147]
[1743377210338,0.00300069,82323.0,82322.0,0.18498785]
[1743377210541,0.00314177,82323.0,82322.0,0.68893832]
[1743377210879,0.00314177,82323.0,82322.0,0.68650984]
[1743377211426,0.00314177,82323.0,82322.0,0.69250984]
[1743377211632,0.00314177,82323.0,82322.0,0.69850984]
[1743377212038,0.00314177,82323.0,82322.0,0.57020984]
[1743377212198,0.000337,82337.0,82328.0,0.29961685]
[1743377212398,0.000337,82337.0,82328.0,0.59813834]
[1743377213043,0.012138,82380.0,82362.0,0.012141]
[1743377213217,0.00014113,82376.0,82363.0,0.01454085]
[1743377213423,0.00014113,82376.0,82365.0,0.01454085]
[1743377213600,0.00014113,82376.0,82367.0,0.01454085]
[1743377214001,0.03631428,82376.0,82367.0,0.01454085]
[1743377214202,0.00511524,82375.0,82367.0,0.01454085]
[1743377215033,0.3,82374.0,82367.0,0.01454085]
[1743377215255,0.242803,82371.0,82367.0,0.01454085]
[1743377215417,0.3,82370.0,82369.0,0.01454085]
[1743377215634,0.30511524,82370.0,82369.0,0.01454085]
[1743377216281,0.30511524,82370.0,82357.0,0.01454085]
[1743377216282,0.242832,82362.0,82357.0,0.01454085]
[1743377216459,0.242832,82362.0,82359.0,0.01454085]
[1743377217349,0.24283,82362.0,82361.0,0.0386593]
[1743377217554,0.24808352,82362.0,82361.0,0.1856593]
[1743377217755,0.24808352,82362.0,82361.0,0.21405438]
[1743377218036,0.24808352,82362.0,82361.0,0.1856593]
[1743377219563,0.24808352,82362.0,82361.0,0.1906593]
[1743377219910,0.24808352,82362.0,82361.0,0.1856593]
[1743377220146,0.38412452,82362.0,82361.0,0.14696]
[1743377220347,0.38412452,82362.0,82361.0,0.15596]
[1743377220748,0.38412452,82362.0,82361.0,0.009]
[1743377221140,0.38412452,82362.0,82361.0,0.004]
[1743377222455,0.254987,82357.0,82356.0,0.14696]
[1743377222758,0.26923886,82357.0,82356.0,0.14696]
[1743377223892,0.26923886,82357.0,82356.0,0.14796]
[1743377224238,0.26923886,82357.0,82356.0,0.14996]
[1743377224645,0.26923886,82357.0,82356.0,0.003]
[1743377224646,0.34623886,82357.0,82356.0,0.003]
[1743377226440,0.14227054,82357.0,82356.0,0.003]
[1743377227042,0.15441254,82357.0,82356.0,0.003]
[1743377227448,0.15441254,82357.0,82356.0,1e-06]
[1743377227747,0.50100954,82357.0,82356.0,1e-06]
[1743377227993,0.332052,82336.0,82335.0,0.77784]
[1743377228208,0.332052,82336.0,82322.0,0.08123716]
[1743377228209,0.255092,82323.0,82322.0,0.08123716]
[1743377228444,0.255117,82315.0,82314.0,0.63092]
[1743377228647,0.242969,82315.0,82314.0,0.63092]
[1743377228865,0.24804632,82315.0,82314.0,0.79242085]
[1743377229307,0.24804632,82315.0,82314.0,0.81732498]
[1743377229534,0.24804632,82315.0,82314.0,0.80278413]
[1743377229750,0.242969,82315.0,82314.0,0.88906254]
[1743377229970,0.24804632,82315.0,82314.0,0.90360339]
[1743377230731,0.279542,82315.0,82314.0,0.90360339]
[1743377230964,0.036573,82315.0,82314.0,0.90360339]
[1743377231201,0.242946,82323.0,82315.0,0.01454085]
[1743377231442,0.00503652,82322.0,82317.0,0.01454085]
[1743377231683,0.03573199,82322.0,82317.0,0.01454085]
[1743377231910,0.03069547,82322.0,82317.0,0.01454085]
[1743377232147,0.242922,82331.0,82319.0,0.09524085]
[1743377232402,0.00503652,82330.0,82321.0,0.01454085]
[1743377232865,0.00503652,82330.0,82320.0,0.01454085]
[1743377232866,0.242934,82327.0,82320.0,0.01454085]
[1743377233103,0.242939,82325.0,82320.0,0.01454085]
[1743377233592,0.00503652,82324.0,82320.0,0.01454085]
[1743377234029,0.00503652,82324.0,82322.0,0.01454085]
[1743377234257,0.242934,82327.0,82322.0,0.01454085]
[1743377234484,0.00503652,82323.0,82322.0,0.01454085]
[1743377234733,0.27449807,82333.0,82324.0,0.01454085]
[1743377234970,0.242921,82331.0,82326.0,0.01454085]
[1743377235281,0.00503652,82330.0,82326.0,0.01454085]
[1743377235470,0.242927,82329.0,82326.0,0.01454085]
[1743377235931,0.00503652,82328.0,82326.0,0.01454085]
[1743377236185,0.00503652,82328.0,82327.0,0.02518744]
[1743377236369,0.242921,82331.0,82328.0,0.01454085]
[1743377236629,0.00503652,82330.0,82329.0,0.16154085]
[1743377238549,0.00503652,82330.0,82329.0,0.16454085]
[1743377239651,0.00503652,82330.0,82329.0,0.16654085]
[1743377242217,0.00503652,82330.0,82329.0,0.16650085]
[1743377244782,0.01718252,82330.0,82329.0,0.15196]
[1743377245024,0.00503652,82330.0,82329.0,0.15196]
[1743377249996,0.04376752,82330.0,82329.0,0.15196]
[1743377250470,0.00500804,82330.0,82329.0,0.15196]
[1743377250706,0.242918,82332.0,82329.0,0.15196]
[1743377250923,0.242921,82331.0,82329.0,0.15196]
[1743377251095,0.242921,82331.0,82330.0,0.08070664]
[1743377251256,0.242921,82331.0,82329.0,0.15196]
[1743377251661,0.242921,82331.0,82329.0,0.14996]
[1743377251864,0.242921,82331.0,82329.0,0.15196]
[1743377252279,0.242921,82331.0,82329.0,0.14996]
[1743377252507,0.242921,82331.0,82329.0,0.15196]
[1743377252678,0.18930468,82332.0,82329.0,0.14896]
[1743377252851,0.242921,82331.0,82330.0,0.14696]
[1743377254505,0.542921,82331.0,82330.0,0.16350085]
[1743377254710,0.3,82331.0,82330.0,0.16350085]
[1743377254914,0.3,82331.0,82330.0,0.24090085]
[1743377256279,0.3,82340.0,82333.0,0.01454085]
[1743377256487,0.242883,82345.0,82335.0,0.01454085]
[1743377256694,0.242883,82345.0,82333.0,0.07296916]
[1743377256695,0.242886,82344.0,82337.0,0.01454085]
[1743377256892,0.242871,82348.0,82337.0,0.01454085]
[1743377256893,0.242891,82342.0,82337.0,0.01454085]
[1743377257210,0.242891,82342.0,82334.0,0.01454085]
[1743377257405,0.57493447,82343.0,82334.0,0.01454085]
[1743377257631,0.57493447,82343.0,82336.0,0.01454085]
[1743377258739,0.57493447,82343.0,82334.0,0.01554085]
[1743377258962,0.57493447,82343.0,82333.0,0.01454085]
[1743377259244,0.03204547,82343.0,82338.0,0.01454085]
[1743377259655,0.3,82344.0,82333.0,0.01454085]
[1743377259857,0.0001681,82343.0,82335.0,0.01454085]
[1743377260478,0.27445235,82343.0,82335.0,0.01454085]
[1743377260706,0.242892,82341.0,82338.0,0.001]
[1743377260906,0.242898,82339.0,82338.0,0.001]
[1743377261107,0.242898,82339.0,82338.0,0.16246085]
[1743377261506,0.2737207,82343.0,82339.0,0.01454085]
[1743377261697,0.3,82342.0,82339.0,0.01454085]
[1743377262148,0.3,82342.0,82341.0,0.01454085]
[1743377262758,0.0001681,82343.0,82341.0,0.01454085]
[1743377263355,0.3,82342.0,82341.0,0.01454085]
[1743377263895,0.3,82342.0,82341.0,0.01554085]
[1743377264955,0.312144,82342.0,82341.0,0.16346085]
[1743377265402,0.3,82342.0,82341.0,0.16346085]
[1743377265845,0.312144,82342.0,82341.0,0.16346085]
[1743377266678,0.312144,82342.0,82341.0,0.01654085]
[1743377266904,0.312144,82342.0,82341.0,0.14892]
[1743377267424,0.312144,82342.0,82341.0,0.002]
[1743377268593,0.312144,82342.0,82341.0,0.001]
[1743377269013,0.012145,82337.0,82336.0,0.14692]
[1743377270120,0.555049,82337.0,82336.0,0.14692]
[1743377271034,0.555049,82337.0,82336.0,0.14792]
[1743377272122,0.555049,82337.0,82336.0,0.14892]
[1743377272326,0.542904,82337.0,82336.0,0.14892]
[1743377272533,0.555049,82337.0,82336.0,0.14892]
[1743377272939,0.555049,82337.0,82336.0,0.21332085]
[1743377272940,0.3,82337.0,82336.0,0.21332085]
[1743377273139,0.3001681,82337.0,82336.0,0.21332085]
[1743377273766,0.3001681,82337.0,82336.0,0.21232085]
[1743377273970,0.0001681,82337.0,82336.0,0.21332085]
[1743377274165,0.0001681,82337.0,82336.0,0.47080142]
[1743377274400,0.0001681,82337.0,82336.0,0.46737285]
[1743377274728,0.0001681,82337.0,82336.0,0.46937285]
[1743377274931,0.0001681,82337.0,82336.0,0.46737285]
[1743377275158,0.0001681,82337.0,82336.0,0.57751449]
[1743377275553,0.0001681,82337.0,82336.0,0.57851449]
[1743377275972,0.0001681,82337.0,82336.0,0.58151449]
[1743377276171,0.0001681,82337.0,82336.0,0.21732085]
[1743377276547,0.0001681,82337.0,82336.0,0.22332085]
[1743377279239,0.0001681,82337.0,82336.0,0.07644085]
[1743377279455,0.2552171,82337.0,82336.0,0.17342085]
[1743377279631,0.0001681,82337.0,82336.0,0.17342085]
[1743377280369,0.0001681,82337.0,82336.0,0.16742085]
[1743377280370,0.2430721,82337.0,82336.0,0.16742085]
[1743377280753,0.2430721,82337.0,82336.0,0.16142085]
[1743377280938,0.0001681,82337.0,82336.0,0.16142085]
[1743377281121,0.0001681,82337.0,82336.0,0.16542085]
[1743377281729,0.0001681,82337.0,82336.0,0.16942085]
[1743377283414,0.2430721,82337.0,82336.0,0.16942085]
[1743377283616,0.5552171,82337.0,82336.0,0.02254085]
[1743377283860,0.5552171,82337.0,82336.0,0.008]
[1743377284124,0.5552171,82337.0,82336.0,0.15488]
[1743377284266,0.5552171,82337.0,82336.0,0.16942085]
[1743377284671,0.5552171,82337.0,82336.0,0.15488]
[1743377284867,0.5552171,82337.0,82336.0,0.15484]
[1743377285483,0.5552171,82337.0,82336.0,0.008]
[1743377285936,0.6040171,82337.0,82336.0,0.008]
[1743377286313,0.6040171,82337.0,82336.0,0.004]
[1743377286769,0.6040171,82337.0,82332.0,0.0003366]
[1743377286770,0.55506,82333.0,82332.0,0.0003366]
[1743377286932,0.55506,82333.0,82291.0,0.243039]
[1743377286933,0.55516,82301.0,82294.0,0.0476]
[1743377287140,0.55516,82301.0,82290.0,0.0787]
[1743377287141,0.55516,82301.0,82300.0,0.28022589]
[1743377287659,0.55516,82301.0,82300.0,0.29476674]
[1743377287902,0.55516,82301.0,82300.0,0.17154398]
[1743377288640,0.55516,82301.0,82300.0,0.17654398]
[1743377289432,0.3,82301.0,82300.0,0.21477285]
[1743377290081,0.3,82301.0,82300.0,0.19708483]
[1743377290615,0.31215,82301.0,82300.0,0.19708483]
[1743377290749,0.31215,82301.0,82300.0,0.05020483]
[1743377290953,0.31215,82301.0,82300.0,0.19708483]
[1743377293934,0.36215,82301.0,82300.0,0.19708483]
[1743377294136,0.36215,82301.0,82300.0,0.19208483]
[1743377294292,0.36215,82301.0,82300.0,0.15235054]
[1743377294757,0.36215,82301.0,82300.0,0.15835054]
[1743377297129,0.36215,82301.0,82300.0,0.15868714]
[1743377299903,0.36215,82301.0,82300.0,0.01180714]
[1743377300494,0.36215,82301.0,82300.0,0.00680714]
[1743377300699,0.36215,82301.0,82300.0,0.00980714]
[1743377300903,0.555163,82300.0,82299.0,3.4e-07]
[1743377301151,0.555163,82300.0,82299.0,0.00014142]
[1743377301304,0.555163,82300.0,82299.0,4.2e-07]
[1743377301482,1.156036,82300.0,82299.0,4.2e-07]
[1743377301687,0.638363,82300.0,82299.0,4.2e-07]
[1743377302562,0.639363,82300.0,82299.0,4.2e-07]
[1743377304033,0.638363,82300.0,82299.0,4.2e-07]
[1743377304316,0.559163,82300.0,82299.0,4.2e-07]
[1743377305307,0.557163,82300.0,82299.0,4.2e-07]
[1743377305467,0.555163,82300.0,82299.0,4.2e-07]
[1743377305684,0.558163,82300.0,82299.0,4.2e-07]
[1743377305885,0.560163,82300.0,82299.0,4.2e-07]
[1743377306872,0.557163,82300.0,82299.0,4.2e-07]
[1743377307277,0.301,82300.0,82299.0,4.2e-07]
[1743377307481,0.002,82300.0,82299.0,0.01614255]
[1743377307650,0.002,82300.0,82299.0,0.01454127]
[1743377307856,0.05,82301.0,82300.0,0.02669085]
[1743377308024,0.05,82301.0,82300.0,0.15239085]
[1743377309171,0.05,82301.0,82300.0,0.14024085]
[1743377310360,0.05,82301.0,82300.0,0.14524085]
[1743377311187,0.05,82301.0,82300.0,0.15024085]
[1743377312075,0.05,82301.0,82300.0,0.27264739]
[1743377312291,0.05,82301.0,82300.0,0.16239085]
[1743377312999,0.05,82301.0,82300.0,0.15024085]
[1743377313241,0.06215,82301.0,82300.0,0.29712085]
[1743377313478,0.06215,82301.0,82300.0,0.17142085]
[1743377314210,0.06215,82301.0,82300.0,0.01]
[1743377314453,0.36215,82301.0,82300.0,0.15684]
[1743377315660,0.36215,82301.0,82300.0,0.01]
[1743377315845,0.36215,82301.0,82300.0,0.15684]
[1743377316076,0.36215,82301.0,82300.0,0.14684]
[1743377316295,0.36215,82301.0,82300.0,0.14884]
[1743377316499,0.36215,82301.0,82300.0,0.15184]
[1743377316929,0.36215,82301.0,82300.0,0.14884]
[1743377318266,0.36215,82301.0,82300.0,0.14677404]
[1743377318579,0.36215,82301.0,82300.0,0.14477404]
[1743377319003,0.36215,82301.0,82300.0,0.13973666]
[1743377319561,0.36215,82301.0,82300.0,0.14073666]
[1743377320433,0.36219,82301.0,82300.0,0.14073666]
[1743377321469,0.36219,82301.0,82300.0,0.14107326]
[1743377322696,0.36219,82301.0,82300.0,0.1481766]
[1743377322894,0.36219,82301.0,82300.0,0.0013366]
[1743377323675,0.555194,82290.0,82282.0,0.14684]
[1743377323877,0.555194,82290.0,82289.0,0.00047742]
[1743377324885,0.243036,82292.0,82289.0,0.00047742]
[1743377325101,0.255194,82290.0,82289.0,0.00047742]
[1743377325918,0.255194,82290.0,82289.0,0.00147742]
[1743377327906,0.255194,82290.0,82289.0,0.00247742]
[1743377328566,0.25633232,82290.0,82289.0,0.00247742]
[1743377331519,0.25633232,82290.0,82289.0,4.2e-07]
[1743377332756,0.555219,82282.0,82281.0,0.00396042]
[1743377332934,0.555271,82265.0,82260.0,0.14684]
[1743377333336,0.555271,82265.0,82260.0,0.17110783]
[1743377334804,0.555271,82265.0,82260.0,0.14684]
[1743377335169,0.555271,82265.0,82264.0,0.0031682]
[1743377335394,0.555309,82253.0,82252.0,0.07117982]
[1743377335545,0.555309,82253.0,82252.0,0.21816104]
[1743377335741,0.555309,82253.0,82252.0,0.00014122]
[1743377336082,0.555309,82253.0,82252.0,0.14698122]
[1743377336656,0.555309,82253.0,82252.0,0.14998122]
[1743377336920,0.58338435,82253.0,82252.0,0.14998122]
[1743377338496,0.58338435,82253.0,82252.0,0.15298122]
[1743377338686,0.58338435,82253.0,82252.0,0.00614122]
[1743377340117,0.59259593,82253.0,82252.0,0.00614122]
[1743377340344,0.58043893,82253.0,82252.0,0.02068207]
[1743377340658,0.57122735,82253.0,82252.0,0.02068207]
[1743377340881,0.58338435,82253.0,82252.0,0.02068207]
[1743377341860,0.59260507,82253.0,82252.0,0.02068207]
[1743377344052,0.59260507,82253.0,82252.0,0.00614122]
[1743377344798,0.59260507,82253.0,82252.0,0.00630962]
[1743377350818,0.59260507,82253.0,82252.0,0.00330962]
[1743377351463,0.59260507,82253.0,82252.0,0.00130962]
[1743377361404,0.59260507,82253.0,82251.0,0.004]
[1743377361405,0.312157,82252.0,82251.0,0.004]
[1743377362537,0.312158,82250.0,82249.0,0.0003362]
[1743377362975,0.312158,82250.0,82246.0,0.0003362]
[1743377362976,0.012158,82247.0,82246.0,4e-07]
[1743377363175,0.555349,82240.0,82239.0,0.0002962]